Workbook

Sheet SEMESTAR
B1: RASPORED ČASOVA
B2: JESENJI SEMESTAR
C3: VREME POČETKA | D3: VREMENSKI INTERVAL | F3: GODINA
C4: 09:00:00 | D4: 60 | E4: (u minutima)
B5: VREME | C5: PON | D5: UTO. | E5: SRE. | F5: ČET. | G5: PET. | H5: SUB. | I5: NED
B6: =VremePočetka+TIME(0,(ROW(A1)-1)*Vremenski_nterval,0) -> 09:00:00 | C6: Doručak | D6: Doručak | E6: Doručak | F6: Doručak | G6: Doručak
B7: 10:00:00 | C7: Posao: Predavanje, zgrada B, kabinet 256
B8: 11:00:00 | F8: Fizika: Laboratorija Zgrada J, kabinet 309
B9: 12:00:00
B10: 13:00:00
B11: 14:00:00
B12: 15:00:00
B13: 16:00:00
B14: 17:00:00
B15: 18:00:00
B16: 19:00:00
B17: 20:00:00
B18: 21:00:00
B19: 22:00:00
B20: 23:00:00
B21: 1
B22: 1.041666667
B23: 1.083333333
B24: 1.125
B25: 1.166666667
B26: 1.208333333
B27: 1.25
B28: 1.291666667
B29: 1.333333333

Sheet KREDITI
B1: FAKULTET
B2: PLANER KREDITA
B3: Naziv zvanja | C3: =Godina -> GODINA
B4: UKUPNI NAPREDAK | D4: UKUPNI NAPREDAK
B5: =AVERAGE(Kursevi[OCENA]) -> 3.5 | C5: =IFERROR(TEXT(AVERAGEIF(Kursevi[ZAVRŠENO],"Da",Kursevi[OCENA]),"0,00"),"0.00")&" Trenutni prosek ocena" -> 3,50 Trenutni prosek ocena | D5: =COUNTIF(Kursevi[ZAVRŠENO],"Da")/COUNTA(Kursevi[NASLOV KURSA]) -> 0.6666666667 | E5: =TEXT(COUNTIF(Kursevi[ZAVRŠENO],"Da")/COUNTA(Kursevi[NASLOV KURSA]),"0%")&" Dovršeno" -> 67% Dovršeno
B6: Napomena: Sledeći rezime bodova automatski se popunjava unosima iz dolenavedene tabele „Fakultetski kursevi“
B7: USLOV | C7: UKUPNO BODOVA | D7: OSTVARENO | E7: POTREBNO
B8: Glavni akademski predmet | C8: =IF(SUMIF(Kursevi[ZAHTEVANO],KREDITI!$B8,Kursevi[KREDITI])=0,"0",SUMIF(Kursevi[ZAHTEVANO],KREDITI!$B8,Kursevi[KREDITI])) -> 4 | D8: =SUMIFS(Kursevi[KREDITI],Kursevi[ZAHTEVANO],KREDITI!$B8,Kursevi[ZAVRŠENO],"Da") -> 4 | E8: =SUMIF(Kursevi[ZAHTEVANO],KREDITI!$B8,Kursevi[KREDITI])-SUMIFS(Kursevi[KREDITI],Kursevi[ZAHTEVANO],KREDITI!$B8,Kursevi[ZAVRŠENO],"Da") -> 0
B9: Sporedni akademski predmet | C9: =IF(SUMIF(Kursevi[ZAHTEVANO],KREDITI!$B9,Kursevi[KREDITI])=0,"0",SUMIF(Kursevi[ZAHTEVANO],KREDITI!$B9,Kursevi[KREDITI])) -> 3 | D9: =SUMIFS(Kursevi[KREDITI],Kursevi[ZAHTEVANO],KREDITI!$B9,Kursevi[ZAVRŠENO],"Da") -> 0 | E9: =SUMIF(Kursevi[ZAHTEVANO],KREDITI!$B9,Kursevi[KREDITI])-SUMIFS(Kursevi[KREDITI],Kursevi[ZAHTEVANO],KREDITI!$B9,Kursevi[ZAVRŠENO],"Da") -> 3
B10: Izborni predmet | C10: =IF(SUMIF(Kursevi[ZAHTEVANO],KREDITI!$B10,Kursevi[KREDITI])=0,"0",SUMIF(Kursevi[ZAHTEVANO],KREDITI!$B10,Kursevi[KREDITI])) -> 2 | D10: =SUMIFS(Kursevi[KREDITI],Kursevi[ZAHTEVANO],KREDITI!$B10,Kursevi[ZAVRŠENO],"Da") -> 2 | E10: =SUMIF(Kursevi[ZAHTEVANO],KREDITI!$B10,Kursevi[KREDITI])-SUMIFS(Kursevi[KREDITI],Kursevi[ZAHTEVANO],KREDITI!$B10,Kursevi[ZAVRŠENO],"Da") -> 0
B11: Opšte studije | C11: =IF(SUMIF(Kursevi[ZAHTEVANO],KREDITI!$B11,Kursevi[KREDITI])=0,"0",SUMIF(Kursevi[ZAHTEVANO],KREDITI!$B11,Kursevi[KREDITI])) -> 0 | D11: =SUMIFS(Kursevi[KREDITI],Kursevi[ZAHTEVANO],KREDITI!$B11,Kursevi[ZAVRŠENO],"Da") -> 0 | E11: =SUMIF(Kursevi[ZAHTEVANO],KREDITI!$B11,Kursevi[KREDITI])-SUMIFS(Kursevi[KREDITI],Kursevi[ZAHTEVANO],KREDITI!$B11,Kursevi[ZAVRŠENO],"Da") -> 0
B12: Ukupno | C12: =SUBTOTAL(109,KREDITI!$C$8:$C$11) -> 9 | D12: =SUBTOTAL(109,KREDITI!$D$8:$D$11) -> 6 | E12: =SUBTOTAL(109,KREDITI!$E$8:$E$11) -> 3
B13: Kursevi
B14: NASLOV KURSA | C14: BROJ KURSA | D14: ZAHTEVANO | E14: KREDITI | F14: ZAVRŠENO | G14: OCENA | H14: SEMESTAR
B15: Kurs 1 | C15: Broj | D15: Glavni akademski predmet | E15: 4 | F15: Da | G15: 4.0 | H15: Semestar 1
B16: Kurs 2 | C16: Broj | D16: Sporedni akademski predmet | E16: 3 | F16: Ne | H16: Semestar 1
B17: Kurs 3 | C17: Broj | D17: Izborni predmet | E17: 2 | F17: Da | G17: 3.0 | H17: Semestar 1

Sheet BUDŽET
B1: =Fakultet -> FAKULTET
B2: PRAĆENJE BUDŽETA
B3: Moj budžet | C3: =Godina -> GODINA
B4: PROCENAT POTROŠENOG PRIHODA
B5: =MESEČNI_NETO_TROŠKOVI/MESEČNI_NETO_PRIHOD -> 75%
B6: =B5 -> 0.7454545455
B7: MESEČNI NETO PRIHOD | C7: MESEČNI NETO TROŠKOVI | D7: SALDO
B8: =C10 -> 2,750 RSD | C8: ='MESEČNI NETO TROŠKOVI'!C4+'TROŠKOVI TOKOM SEMESTRA'!D4 -> 2,050 RSD | D8: =MESEČNI_NETO_PRIHOD-MESEČNI_NETO_TROŠKOVI -> 700 RSD
B9: Meseci u semestru | C9: 4
B10: MESEČNI PRIHOD | C10: =SUM(MesečniPrihod[IZNOS]) -> 2,750 RSD
B11: STAVKA | C11: IZNOS
B12: Fiksni prihod | C12: 1,500 RSD
B13: Finansijska pomoć | C13: 500 RSD
B14: Zajmovi | C14: 500 RSD
B15: Ostali prihodi | C15: 250 RSD

Sheet MESEČNI NETO TROŠKOVI
B1: =Fakultet -> FAKULTET
B2: PRAĆENJE BUDŽETA
B3: Mesečni troškovi | C3: =Godina -> GODINA
B4: MESEČNI TROŠKOVI | C4: =SUM(MesečniTroškovi[IZNOS]) -> 1,675 RSD
B5: STAVKA | C5: IZNOS
B6: Renta | C6: 300 RSD
B7: Komunalne usluge | C7: 50 RSD
B8: Mobilni telefon | C8: 75 RSD
B9: Namirnice | C9: 250 RSD
B10: Troškovi automobila | C10: 50 RSD
B11: Studentski zajmovi | C11: 500 RSD
B12: Kreditne kartice | C12: 275 RSD
B13: Osiguranje | C13: 125 RSD
B14: Zabava | C14: 50 RSD
B15: Razno | C15: 0 RSD

Sheet TROŠKOVI TOKOM SEMESTRA
B1: =Fakultet -> FAKULTET
B2: PRAĆENJE BUDŽETA
B3: Troškovi tokom semestra | C3: =Godina -> GODINA
B4: TROŠKOVI TOKOM SEMESTRA (ukupno/mesečno) | C4: =SUM(TroškoviTokomSemestra[IZNOS]) -> 1,500 RSD | D4: =SUM(TroškoviTokomSemestra[MESEČNO]) -> 375 RSD
B5: STAVKA | C5: IZNOS | D5: MESEČNO
B6: Školarina | C6: 750 RSD | D6: =TroškoviTokomSemestra[[#This Row],[IZNOS]]/Meseci_u_semestru -> 188 RSD
B7: Laboratorijske takse | C7: 250 RSD | D7: =TroškoviTokomSemestra[[#This Row],[IZNOS]]/Meseci_u_semestru -> 63 RSD
B8: Knjige | C8: 500 RSD | D8: =TroškoviTokomSemestra[[#This Row],[IZNOS]]/Meseci_u_semestru -> 125 RSD
B9: Depoziti | C9: 0 RSD | D9: =TroškoviTokomSemestra[[#This Row],[IZNOS]]/Meseci_u_semestru -> 0 RSD
B10: Prevoz | C10: 0 RSD | D10: =TroškoviTokomSemestra[[#This Row],[IZNOS]]/Meseci_u_semestru -> 0 RSD
B11: Ostale takse | C11: 0 RSD | D11: =TroškoviTokomSemestra[[#This Row],[IZNOS]]/Meseci_u_semestru -> 0 RSD

Sheet KNJIGE
B1: =Fakultet -> FAKULTET
B2: PRAĆENJE KNJIGA
B3: Spisak knjiga
B4: NASLOV | C4: AUTOR | D4: KURS | E4: GDE KUPITI? | F4: ISBN | G4: NAPOMENE
B5: Naslov knjige | C5: Autor | D5: Kurs | E5: Lokacija | F5: Broj
B6: Naslov knjige | C6: Autor | D6: Kurs | E6: Lokacija | F6: Broj
B7: Naslov knjige | C7: Autor | D7: Kurs | E7: Lokacija | F7: Broj
